[Event "Serbian League 2024"]
[Site "Bajina Basta"]
[Date "2024.10.02"]
[Round "6.18"]
[White "Petrovic, Aleksa"]
[Black "Popovic, Milan S"]
[Result "1-0"]
[ECO "A05"]
[WhiteElo "2250"]
[BlackElo "2367"]
[Annotator "RC"]
[PlyCount "127"]
[EventDate "2024.09.26"]
[EventType "team-tourn"]
[EventCountry "SRB"]
[SourceTitle "playchess.com"]
[Source "ChessBase"]
[SourceQuality "1"]
[TimeControl "40/5400+30:1800+30"]

1. Nf3 {[%emt 0:00:03]} Nf6 {[%emt 0:00:16]} 2. g3 {[%emt 0:00:05]} g6 {[%emt 0:00:24]} 3. b3 {[%emt 0:00:06]} d5 {[%emt 0:00:13]} 4. Bb2 {[%emt 0:00:30]} c5 {[%emt 0:00:08]} 5. Bg2 {[%emt 0:01:13]} Bg7 {[%emt 0:00:43]} 6. O-O {[%emt 0:00:10]} O-O {[%emt 0:02:01]} 7. c4 {[%emt 0:02:20]} d4 {[%emt 0:01:28]} 8. b4 {[%emt 0:01:02]} a5 {[%emt 0:04:53]} 9. bxc5 {[%emt 0:01:40]} Nc6 {[%emt 0:00:03]} 10. d3 {[%emt 0:07:55]} Nd7 {[%emt 0:12:34]} 11. Ba3 {[%emt 0:09:37]} Nb4 {[%emt 0:35:18]} 12. c6 {[%emt 0:13:46]} bxc6 {[%emt 0:02:40]} 13. Nbd2 {[%emt 0:06:28]} Rb8 {[%emt 0:05:22]} 14. Nb3 {[%emt 0:07:34]} c5 {[%emt 0:01:24]} 15. Bc1 {[%emt 0:12:17]} Qc7 {[%emt 0:04:56]} 16. a3 {[%emt 0:05:35]} Nc6 {[%emt 0:01:43]} 17. Ra2 {[%emt 0:03:26]} Bb7 {[%emt 0:03:05]} 18. e3 {[%emt 0:01:32]} e5 {[%emt 0:07:27]} 19. Re1 {[%emt 0:04:09]} Nd8 {[%emt 0:05:57]} 20. Rae2 {[%emt 0:11:30]} Ne6 {[%emt 0:02:01]} 21. exd4 {[%emt 0:01:19]} cxd4 {[%emt 0:00:19]} 22. Bd2 {[%emt 0:02:41]} Ra8 {[%emt 0:02:34]} 23. a4 {[%emt 0:01:23]} Rfb8 {[%emt 0:01:09]} 24. Bc1 {[%emt 0:03:09]} Bc6 {[%emt 0:00:15]} 25. Ra2 {[%emt 0:00:34]} Qb7 {[%emt 0:00:36]} 26. Nbd2 {[%emt 0:01:23]} Nec5 {[%emt 0:01:08]} 27. Qe2 {[%emt 0:00:50]} Qc7 {[%emt 0:01:32]} 28. h4 {[%emt 0:01:36]} Nxa4 {[%emt 0:00:28]} 29. Ne4 {[%emt 0:00:33]} f5 {[%emt 0:02:22]} 30. Neg5 {[%emt 0:00:26]} Nc3 {[%emt 0:00:01]} 31. Qc2 {[%emt 0:00:18]} Nxa2 {[%emt 0:00:34]} 32. Qxa2 {[%emt 0:00:01]} Qb7 {[%emt 0:00:51]} 33. Nxe5 {[%emt 0:01:17]} Nxe5 {[%emt 0:00:26]} 34. Bxc6 {[%emt 0:00:27]} Nxc6 {[%emt 0:00:46]} 35. Bf4 {[%emt 0:00:03]} h6 {[%emt 0:01:10]} 36. c5+ {[%emt 0:00:31]} Qb3 {[%emt 0:00:12]} 37. Re8+ {[%emt 0:00:15]} Bf8 {[%emt 0:01:01]} 38. Qxb3+ {[%emt 0:00:28]} Rxb3 {[%emt 0:00:05]} 39. Rxa8 {[%emt 0:00:04]} hxg5 {[%emt 0:00:52]} 40. Bd6 {[%emt 0:00:06]} Kf7 {[%emt 0:00:54]} 41. Rxf8+ {[%emt 0:02:17]} Ke6 {[%emt 0:00:06]} 42. hxg5 {[%emt 0:02:27]} a4 {[%emt 0:05:48]} 43. Re8+ {[%emt 0:03:24]} Kd5 {[%emt 0:00:35]} 44. Ra8 {[%emt 0:02:46]} a3 {[%emt 0:00:12]} 45. f4 {[%emt 0:02:11]} Rxd3 {[%emt 0:15:13]} 46. g4 {[%emt 0:02:54]} Ke6 {[%emt 0:00:33]} 47. gxf5+ {[%emt 0:04:01]} Kxf5 {[%emt 0:00:24]} 48. Kf2 {[%emt 0:05:28]} Kg4 {[%emt 0:01:05]} 49. Ra6 {[%emt 0:04:18]} Nb4 {[%emt 0:07:53]} 50. Ra4 {[%emt 0:00:08]} Nc6 {[%emt 0:02:18]} 51. Ra6 {[%emt 0:04:23]} Nb4 {[%emt 0:01:15]} 52. Ra4 {[%emt 0:00:02]} a2 {[%emt 0:00:35]} 53. c6 {[%emt 0:00:25]} Nxc6 {[%emt 0:01:12]} 54. Rxa2 {[%emt 0:00:02]} Rc3 {[%emt 0:00:00]} 55. Ke2 {[%emt 0:02:05]} Kf5 {[%emt 0:00:26]} 56. Ra8 {[%emt 0:01:53]} Rc2+ {[%emt 0:00:26]} 57. Kd3 {[%emt 0:00:23]} Rc3+ {[%emt 0:00:08]} 58. Kd2 {[%emt 0:00:20]} Ke6 {[%emt 0:00:28]} 59. Bc7 {[%emt 0:01:15]} Nb4 {[%emt 0:00:36]} 60. Ba5 {[%emt 0:00:46]} Rd3+ {[%emt 0:00:48]} 61. Ke2 {[%emt 0:00:11]} Re3+ {[%emt 0:00:23]} 62. Kd2 {[%emt 0:00:26]} Ra3 {[%emt 0:00:36]} 63. Re8+ {[%emt 0:00:34]} Kf7 {[%emt 0:00:16]} 64. Rf8+ {[%emt 0:00:12]} 1-0

[Event "Serbian League 2024"]
[Site "Bajina Basta"]
[Date "2024.10.02"]
[Round "6.19"]
[White "Adhiban, B.."]
[Black "Sarana, Alexey"]
[Result "1-0"]
[ECO "B87"]
[WhiteElo "2537"]
[BlackElo "2713"]
[Annotator "TA"]
[PlyCount "91"]
[EventDate "2024.09.26"]
[EventType "team-tourn"]
[EventCountry "SRB"]
[SourceTitle "playchess.com"]
[Source "ChessBase"]
[SourceQuality "1"]
[TimeControl "40/5400+30:1800+30"]

{[%evp 15,91,0,0,0,24,-20,0,0,0,0,0,-22,0,-44,-27,-29,-19,-21,28,34,24,24,46,36,26,0,11,14,45,33,52,30,45,41,51,50,70,62,81,58,93,95,95,95,219,225,227,228,358,346,292,241,350,15,342,416,478,478,473,250,318,318,1355,1020,1461,1355,1223,941,2216,2121,29972,29973,29957,29962,29978,29980,29982,29983]} 1. e4 {[%emt 0:00:23]} c5 {[%emt 0:00:07]} 2. Nf3 {[%emt 0:00:05]} d6 {[%emt 0:00:04]} 3. d4 {[%emt 0:00:06]} cxd4 {[%emt 0:00:04]} 4. Nxd4 {[%emt 0:00:04]} Nf6 {[%emt 0:00:06]} 5. Nc3 {[%emt 0:00:10]} a6 {[%emt 0:00:06]} 6. Bc4 {[%emt 0:00:12]} e6 {[%emt 0:00:17]} 7. Bb3 {[%emt 0:00:15]} b5 {[%emt 0:00:15]} 8. a3 {[%emt 0:00:09]} Be7 {[%emt 0:00:52]} 9. Qf3 {[%emt 0:00:48][%cal Oe4e5]} Qc7 {[%emt 0:08:44]} 10. Bf4 {[%emt 0:02:11]} Nc6 {[%emt 0:10:26]} 11. Nxc6 {[%emt 0:01:58] The position is equal.} Qxc6 {[%emt 0:00:02]} 12. O-O-O {[%emt 0:00:08]} O-O {[%emt 0:04:19]} 13. Rhe1 {[%emt 0:00:06]} a5 {[%emt 0:08:30]} 14. Bxd6 {[%emt 0:09:02]} Bxd6 {[%emt 0:01:54]} 15. Rxd6 {[%emt 0:00:16]} Qxd6 {[%emt 0:16:57]} 16. e5 {[%emt 0:00:05] [#]} Bb7 {[%emt 0:01:46]} 17. Qxb7 $11 {[%emt 0:00:20]} Qd7 {[%emt 0:00:05]} 18. Qxb5 {[%emt 0:05:57]} Rfd8 {[%emt 0:09:27]} 19. Qe2 {[%emt 0:10:41] Inhibits Qd2+. Active counter play!} (19. Re2 {simplifies} Qxb5 20. Nxb5 Nd7 21. f4) 19... Ne8 {[%emt 0:01:19]} 20. a4 {[%emt 0:05:17]} Nc7 {[%emt 0:01:37]} 21. Ne4 {[%emt 0:05:39]} Na6 {[%emt 0:03:40]} (21... Rab8 {looks sharper.} 22. g3 Qc6 23. Qf3 Qb7) 22. Kb1 {[%emt 0:01:47] Black is weak on the light squares} Qe7 {[%emt 0:06:42]} 23. f4 {[%emt 0:05:03][%cal Bf2f4,Bf4f5][%mdl 32]} Nc5 {[%emt 0:00:35]} 24. Nxc5 {[%emt 0:03:55]} Qxc5 {[%emt 0:00:03]} 25. g4 {[%emt 0:00:06]} Rab8 {[%emt 0:05:24]} 26. f5 {[%emt 0:00:38]} Rb6 {[%emt 0:00:07]} 27. Ka2 {[%emt 0:03:32]} Qb4 {[%emt 0:04:03] Black is now going downhill.} 28. Rd1 {[%emt 0:03:49]} Qe7 {[%emt 0:03:18]} 29. Qf2 {[%emt 0:07:39]} Rxd1 {[%emt 0:02:07]} (29... Rc6 $16 30. Qf3 Rdc8 (30... Rxd1 $2 31. Qxc6 g6 32. fxe6 $18)) 30. Qxb6 $18 {[%emt 0:00:05]} exf5 $16 {[%emt 0:00:11][%mdl 4096] Endgame. KQR-KQB} 31. e6 {[%emt 0:00:58]} fxe6 {[%emt 0:06:26]} (31... g6 {might work better.} 32. exf7+ (32. Qxa5 fxe6 33. gxf5 gxf5 $18) 32... Kg7 33. gxf5 (33. Qxa5 fxg4 34. Qc3+ Kh6 $18) 33... gxf5 34. Qxa5 Qe1 35. f8=B+ (35. Qxf5 $2 Ra1#) 35... Kxf8 36. Qxf5+ Ke7 37. Qc5+ (37. Qxh7+ Kd6 $18) 37... Kd8 38. Qg5+ (38. Qb6+ Kd7 $18) 38... Kc8 39. Qg8+ Kc7 40. Qxh7+ Kb8 41. Qg8+ Ka7 42. Qf7+ Kb6) 32. gxf5 $18 {[%emt 0:00:15]} (32. Qxa5 fxg4 33. Qf5 Rd6 $17) 32... Qd8 {[%emt 0:00:26]} 33. Bxe6+ {[%emt 0:07:38]} Kh8 {[%emt 0:00:24] [#]} (33... Kf8 $142 34. Qa7 Qf6 35. Qc5+ (35. Qxa5 g6 $14) 35... Ke8 36. Qxa5 g6 37. Qb5+ Kf8) 34. Qxd8+ $1 {[%emt 0:00:11]} Rxd8 {[%emt 0:00:03] [#] KR-KB} 35. b4 $1 {[%emt 0:01:13][%mdl 512]} axb4 {[%emt 0:00:34]} 36. Kb3 {[%emt 0:00:12]} g5 {[%emt 0:01:28][%cal Bg7g5,Bg5g4][%mdl 32]} 37. f6 {[%emt 0:09:48]} (37. Kxb4 h5 $18) (37. a5 $142) 37... Rd6 {[%emt 0:00:01]} 38. Bc4 {[%emt 0:00:27] aiming for a5.} h5 $2 {[%emt 0:04:49]} (38... Rxf6 39. a5 Rc6 40. Kxb4 (40. a6 Rc7 $18) 40... Kg7) 39. a5 {[%emt 0:00:08][%cal Ba4a5,Ba5a6][%mdl 32]} ({Less strong is} 39. Kxb4 Rd2 $16 (39... Rxf6 $2 {perishes.} 40. a5 $18)) 39... g4 {[%emt 0:00:51]} 40. a6 {[%emt 0:00:53]} Rd8 {[%emt 0:01:22] Inhibits f7.} 41. Bd3 {[%emt 0:39:20][%cal Od3e4] And now Be4! would win.} Ra8 {[%emt 0:03:04]} 42. Kxb4 {[%emt 0:00:00] White threatens Ka5 and mate.} h4 {[%emt 0:00:14][%cal Bh5h4,Bh4g3][%mdl 32]} 43. Ka5 {[%emt 0:00:00] White mates.} g3 {[%emt 0:02:04]} 44. hxg3 {[%emt 0:00:00]} hxg3 {[%emt 0:00:02]} 45. Be4 {[%emt 0:00:00]} Re8 {[%emt 0:00:11] [#]} 46. a7 $1 {[%emt 0:00:00] Weighted Error Value: White=0.13 (very precise) /Black=0.44.  Loses game:     	---       	Black=1      Mistake:       	White=1     	Black=5      Inaccurate:     	White=3     	Black=3      OK:         	White=10    	Black=6      Best:        	White=8     	Black=1      Strong:       	White=1     	---        Brilliant:      	White=1     	---} 1-0

[Event "Serbian League 2024"]
[Site "Bajina Basta"]
[Date "2024.10.02"]
[Round "6.20"]
[White "Matlakov, Maxim"]
[Black "Can, Emre"]
[Result "1-0"]
[ECO "B51"]
[WhiteElo "2636"]
[BlackElo "2547"]
[Annotator "TA"]
[PlyCount "117"]
[EventDate "2024.09.26"]
[EventType "team-tourn"]
[EventCountry "SRB"]
[SourceTitle "playchess.com"]
[Source "ChessBase"]
[SourceQuality "1"]
[TimeControl "40/5400+30:1800+30"]

{[%evp 48,117,31,0,22,0,0,0,0,5,44,33,33,22,60,0,6,0,46,38,173,178,172,131,167,172,201,179,214,216,283,281,224,164,384,465,434,438,419,375,593,508,10983,899,1301,966,2207,2075,3365,2635,4595,3380,5091,4084,29971,29973,29972,29974,29977,29978,29978,29979,29984,29985,29985,29986,29986,29987,29987,29988,29989,29986]} 1. e4 {[%emt 0:00:28]} c5 {[%emt 0:00:24]} 2. Nf3 {[%emt 0:00:07]} d6 {[%emt 0:00:07]} 3. Bb5+ {[%emt 0:00:08]} Nd7 {[%emt 0:00:16]} 4. O-O {[%emt 0:00:09]} a6 {[%emt 0:00:39]} 5. Be2 {[%emt 0:00:09]} Ngf6 {[%emt 0:01:24]} 6. d3 {[%emt 0:00:16] B51: Sicilian: Moscow Variation (3 Bb5+) without 3...Bd7.} e6 {[%emt 0:00:58]} 7. a4 {[%emt 0:00:24]} b6 {[%emt 0:00:14]} 8. Nfd2 {[%emt 0:00:10] 8.Bf4 is vanishing.} Be7 {[%emt 0:02:24]} 9. f4 {[%emt 0:00:52]} O-O {[%emt 0:01:04]} 10. Bf3 {[%emt 0:00:47]} Bb7 {[%emt 0:05:12]} 11. Nc3 {[%emt 0:05:41]} d5 {[%emt 0:09:18]} 12. g4 {[%emt 0:01:23]} d4 $146 {[%emt 0:06:10]} ({Predecessor:} 12... Nb8 13. g5 Ne8 14. exd5 exd5 15. Bg2 Nc7 16. Nc4 Nc6 17. Nxb6 Rb8 18. Nbxd5 Nxd5 19. Nxd5 {½-½ Nepomniachtchi,I (2771)-Carlsen,M (2839) AI Cup Div 1 W rapid 2023 (2.2)}) 13. Ne2 {[%emt 0:01:18]} e5 {[%emt 0:00:07]} 14. g5 {[%emt 0:06:44]} Ne8 {[%emt 0:00:08]} 15. h4 {[%emt 0:00:16]} exf4 {[%emt 0:00:31]} 16. Nxf4 {[%emt 0:05:31]} Ne5 {[%emt 0:00:25]} 17. Bg2 {[%emt 0:01:20]} Nc7 {[%emt 0:03:52]} 18. Nf3 {[%emt 0:09:22]} f6 {[%emt 0:10:30]} 19. Nh5 {[%emt 0:18:55]} Nxf3+ {[%emt 0:07:23]} 20. Rxf3 {[%emt 0:01:09]} fxg5 {[%emt 0:01:18]} 21. Rxf8+ {[%emt 0:01:33]} Qxf8 {[%emt 0:01:06]} 22. Bxg5 {[%emt 0:17:02]} g6 {[%emt 0:05:07]} 23. Bxe7 {[%emt 0:01:49]} Qxe7 {[%emt 0:00:06]} 24. Qg4 {[%emt 0:00:17]} Rf8 {[%emt 0:00:31]} 25. Rf1 {[%emt 0:01:03]} Ne6 {[%emt 0:11:16]} 26. e5 {[%emt 0:07:46]} (26. Rf5 {simplifies} a5 27. b3 Rxf5 28. exf5 Bxg2 29. Kxg2 Nf8 30. Ng3) 26... Rxf1+ {[%emt 0:00:58]} 27. Kxf1 {[%emt 0:03:33]} Kf7 {[%emt 0:10:08]} 28. Nf6 {[%emt 0:00:47]} Ng7 {[%emt 0:07:01]} (28... h5 $5 29. Qg3 $8 Bxg2+ 30. Qxg2 (30. Kxg2 Ng7 $11) 30... Nd8 $11 (30... Nf4 31. Qe4 $16)) 29. Bxb7 {[%emt 0:05:43]} Qxb7 {[%emt 0:00:06]} 30. Ne4 {[%emt 0:00:17]} Kf8 {[%emt 0:04:22]} 31. Kf2 {[%emt 0:05:16]} (31. Ke2 $1 $14) 31... Nf5 $11 {[%emt 0:02:42]} 32. h5 {[%emt 0:02:24]} Qg7 {[%emt 0:01:15]} (32... Ne3 $11 33. Qf3+ Qf7) 33. Qf4 {[%emt 0:01:37]} Qh6 {[%emt 0:00:41]} ({Black should play} 33... Qf7 $14) 34. Qxh6+ $18 {[%emt 0:00:41]} Nxh6 {[%emt 0:00:02]} 35. hxg6 {[%emt 0:00:25]} hxg6 {[%emt 0:00:16] [#]} 36. a5 $1 {[%emt 0:01:53]} bxa5 {[%emt 0:01:17]} 37. Kf3 {[%emt 0:00:01]} Nf7 {[%emt 0:01:06]} 38. Kf4 {[%emt 0:01:26]} (38. Nxc5 Nxe5+ 39. Ke4 Nc6 $16) 38... c4 {[%emt 0:01:48]} 39. dxc4 {[%emt 0:00:15]} Ke7 {[%emt 0:01:58]} 40. Nc5 {[%emt 0:00:49]} Nd8 $2 {[%emt 0:01:51]} (40... a4 41. Nd3 (41. Nxa4 g5+ 42. Ke4 g4 $16) 41... Ke6 42. Nc5+ Ke7) 41. Nb3 $18 {[%emt 0:05:28]} (41. Nxa6 Nc6 $11) 41... Ne6+ {[%emt 0:08:30]} ({Of course not} 41... Nc6 42. Ke4 $18) 42. Ke4 {[%emt 0:00:20]} g5 {[%emt 0:00:21]} 43. Nxa5 {[%emt 0:09:59]} Nc5+ {[%emt 0:04:00]} (43... g4 {was called for.} 44. b4 (44. Nc6+ Kd7 $14) 44... Kd8 45. Nc6+ Ke8) 44. Kxd4 $18 {[%emt 0:02:52]} g4 {[%emt 0:00:23]} (44... Nd7 $142 45. Kd5 Nb6+ 46. Ke4 (46. Kc6 Na4 $18) 46... Ke6) 45. Ke3 {[%emt 0:05:03]} (45. Kxc5 $142 g3 46. Nc6+ Ke6 47. Nd4+ Kxe5 48. Nf3+ Kf4 49. Ng1) 45... Ke6 {[%emt 0:01:10]} 46. Kf4 {[%emt 0:04:19]} g3 {[%emt 0:01:13]} 47. Kxg3 {[%emt 0:00:07]} Kxe5 {[%emt 0:00:04]} 48. Kf3 {[%emt 0:00:11]} Kd6 {[%emt 0:01:22]} 49. Ke3 {[%emt 0:00:13]} Na4 {[%emt 0:00:10]} 50. b4 {[%emt 0:00:37]} Nc3 {[%emt 0:00:27]} 51. Kd3 {[%emt 0:00:19]} Nd1 {[%emt 0:00:23]} 52. Kd4 {[%emt 0:00:27]} Nf2 {[%emt 0:00:22]} 53. c5+ {[%emt 0:01:17]} Kc7 {[%emt 0:01:02]} 54. c4 {[%emt 0:00:09]} Ng4 {[%emt 0:00:11]} 55. b5 {[%emt 0:00:10]} axb5 {[%emt 0:00:19]} 56. cxb5 {[%emt 0:00:05]} Nf6 {[%emt 0:00:06]} 57. b6+ {[%emt 0:00:07]} Kd7 {[%emt 0:00:11]} 58. c6+ {[%emt 0:01:15]} Kd6 {[%emt 0:00:14]} 59. Kc4 {[%emt 0:00:09]} 1-0

[Event "Serbian League 2024"]
[Site "Bajina Basta"]
[Date "2024.10.02"]
[Round "6.21"]
[White "Bogosavljevic, Boban"]
[Black "Stojanovic, Mihajlo"]
[Result "1/2-1/2"]
[ECO "E04"]
[WhiteElo "2486"]
[BlackElo "2424"]
[Annotator "TA"]
[PlyCount "139"]
[EventDate "2024.09.26"]
[EventType "team-tourn"]
[EventCountry "SRB"]
[SourceTitle "playchess.com"]
[Source "ChessBase"]
[SourceQuality "1"]
[TimeControl "40/5400+30:1800+30"]

{[%evp 50,139,57,50,43,61,52,57,48,57,41,46,44,41,55,47,47,38,38,36,33,14,14,8,8,8,8,0,2,0,8,0,0,0,0,0,0,0,0,0,0,0,0,0,0,0,8,0,0,0,0,0,0,0,0,0,0,0,0,0,0,0,0,0,0,0,0,0,8,8,8,8,8,8,8,8,8,8,8,0,8,8,8,8,8,8,8,8,8,8,8,8]} 1. Nf3 {[%emt 0:03:00]} d5 {[%emt 0:00:07]} 2. g3 {[%emt 0:00:04]} c5 {[%emt 0:01:41]} 3. Bg2 {[%emt 0:00:06]} Nc6 {[%emt 0:00:16]} 4. d4 {[%emt 0:00:05]} Nf6 {[%emt 0:00:23]} 5. O-O {[%emt 0:00:10]} e6 {[%emt 0:00:07]} 6. c4 {[%emt 0:00:12]} dxc4 {[%emt 0:00:12]} 7. dxc5 {[%emt 0:00:37]} Qxd1 {[%emt 0:00:10]} 8. Rxd1 {[%emt 0:00:06]} Bxc5 {[%emt 0:00:06]} 9. Nbd2 {[%emt 0:00:04]} c3 {[%emt 0:00:13]} 10. bxc3 {[%emt 0:00:07]} O-O {[%emt 0:00:09]} 11. Nb3 {[%emt 0:02:09]} Be7 {[%emt 0:00:13] E04: Open Catalan: 5 Nf3.} 12. Bg5 {[%emt 0:11:45]} h6 {[%emt 0:23:06]} 13. Bxf6 {[%emt 0:00:32]} Bxf6 {[%emt 0:00:26]} 14. Nfd4 {[%emt 0:00:54]} Nxd4 {[%emt 0:00:22]} 15. cxd4 {[%emt 0:06:59]} Rb8 {[%emt 0:00:47]} 16. Rac1 {[%emt 0:03:52]} b6 {[%emt 0:03:22]} 17. e4 {[%emt 0:10:57]} Bb7 $146 {[%emt 0:27:08]} ({Predecessor:} 17... e5 18. dxe5 Bxe5 19. Rc2 g5 20. Rd5 Re8 21. Rdd2 Be6 22. Bf1 Red8 23. Ba6 Kf8 {0-1 Lysyj,I (2691)-Ma,Z (2468) CHN-chT China 2015 (3.1)}) 18. e5 {[%emt 0:14:40]} Bd8 {[%emt 0:00:10]} 19. a4 {[%emt 0:21:06]} Re8 {[%emt 0:01:46]} 20. d5 {[%emt 0:05:18]} exd5 {[%emt 0:03:21]} 21. Bxd5 {[%emt 0:00:17]} Kf8 {[%emt 0:14:23]} 22. f4 {[%emt 0:00:47]} Be7 {[%emt 0:00:17]} 23. Bxb7 {[%emt 0:01:23]} Rxb7 {[%emt 0:01:47]} 24. Kg2 {[%emt 0:00:06]} f6 {[%emt 0:09:29]} 25. e6 {[%emt 0:03:42]} f5 {[%emt 0:03:59]} 26. Rd7 {[%emt 0:12:03]} Rxd7 {[%emt 0:00:19]} 27. exd7 {[%emt 0:00:02]} Rd8 {[%emt 0:00:06]} 28. Rc7 {[%emt 0:00:07]} Bf6 $1 {[%emt 0:00:36]} 29. Rxa7 {[%emt 0:00:15]} Ke7 {[%emt 0:00:19]} 30. Rb7 {[%emt 0:00:06]} Ra8 {[%emt 0:00:42]} 31. Rxb6 {[%emt 0:00:08]} Rxa4 {[%emt 0:00:05]} 32. Nc5 {[%emt 0:01:18]} Rd4 {[%emt 0:07:34]} 33. Re6+ {[%emt 0:02:18]} Kf7 {[%emt 0:00:31]} 34. Rc6 {[%emt 0:00:13]} g5 {[%emt 0:02:43]} 35. fxg5 {[%emt 0:01:47]} hxg5 {[%emt 0:00:04]} 36. Rc7 {[%emt 0:00:22]} Bd8 {[%emt 0:00:17]} 37. Rc8 {[%emt 0:00:11]} Be7 {[%emt 0:00:22]} 38. Rh8 {[%emt 0:01:05]} Rd5 {[%emt 0:00:57]} 39. Rc8 {[%emt 0:00:34]} g4 {[%emt 0:00:50]} 40. Kf1 {[%emt 0:00:30]} Rd2 {[%emt 0:00:31]} 41. Ke1 {[%emt 0:02:22]} Rd5 {[%emt 0:14:08]} 42. Ke2 {[%emt 0:03:55]} Bf6 {[%emt 0:07:20]} 43. Rc7 {[%emt 0:08:34]} Bd8 {[%emt 0:00:23]} 44. Rc6 {[%emt 0:00:16]} Bf6 {[%emt 0:01:34]} 45. Ra6 {[%emt 0:06:12]} Ke7 {[%emt 0:03:15]} 46. Ra5 {[%emt 0:08:38]} Kf7 {[%emt 0:03:41]} 47. Rb5 {[%emt 0:00:02]} Ke7 {[%emt 0:02:34]} 48. Rb8 {[%emt 0:02:49]} (48. d8=Q+ {simplifies} Rxd8 49. Nd3 Rh8 50. Rxf5 Rxh2+ 51. Rf2) 48... Kf7 {[%emt 0:00:11]} 49. Rb7 {[%emt 0:00:36]} Ke7 {[%emt 0:01:07]} 50. Rb8 {[%emt 0:01:36]} Kf7 {[%emt 0:00:15]} 51. Rc8 {[%emt 0:00:02]} Ke7 {[%emt 0:00:28]} 52. Rc6 {[%emt 0:00:16]} Kf7 {[%emt 0:00:15]} 53. Kf1 {[%emt 0:01:11]} Be7 {[%emt 0:00:43]} 54. Rc8 {[%emt 0:00:23]} Bf6 {[%emt 0:00:20]} (54... Rd2 $5) 55. Kf2 {[%emt 0:00:38]} Be7 {[%emt 0:00:40]} 56. Ke1 {[%emt 0:00:03]} Bg5 {[%emt 0:00:37]} 57. Rc6 {[%emt 0:00:29]} Be7 {[%emt 0:00:30]} 58. Ke2 {[%emt 0:00:52]} Bxc5 {[%emt 0:00:46]} (58... Bg5 {seems wilder.} 59. Nd3 Ke7 60. Rc5 Rxc5 61. Nxc5 Kd6) 59. Rxc5 {[%emt 0:00:01]} Rxd7 {[%emt 0:00:07]} 60. Rxf5+ {[%emt 0:00:02]} Kg6 {[%emt 0:00:07]} 61. Rf4 {[%emt 0:00:24]} Kg5 {[%emt 0:00:06]} 62. Ke3 {[%emt 0:00:25]} Re7+ {[%emt 0:01:19]} 63. Kd3 {[%emt 0:00:40]} Rd7+ {[%emt 0:00:16]} 64. Ke3 {[%emt 0:00:57]} Re7+ {[%emt 0:00:07]} 65. Kf2 {[%emt 0:00:02]} Rh7 {[%emt 0:00:16]} 66. Kg2 {[%emt 0:00:04]} Ra7 {[%emt 0:00:09]} 67. Rf2 {[%emt 0:00:04]} Ra6 {[%emt 0:00:36]} 68. Rd2 {[%emt 0:00:15]} Rf6 {[%emt 0:00:17]} 69. Rd8 {[%emt 0:01:20]} Rf7 {[%emt 0:00:34]} 70. h4+ {[%emt 0:01:34]} 1/2-1/2